[Event "*** Titled Tuesday Blitz"]
[Site "Chess.com"]
[Date "2020.05.26"]
[Round "1"]
[White "Kobalia"]
[Black "Lovinski"]
[Result "1-0"]
[WhiteElo "2811"]
[BlackElo "2405"]
[TimeControl "180+1"]
[EndTime "10:06:58 PDT"]
[Termination "Kobalia won by resignation"]

1. e4 {[%clk 0:02:54.6]} 1... e5 {[%clk 0:03:00]} 2. Nf3 {[%clk 0:02:53.1]} 2...
Nc6 {[%clk 0:03:00]} 3. Bb5 {[%clk 0:02:49.6]} 3... a6 {[%clk 0:02:59.9]} 4. Ba4
{[%clk 0:02:49.4]} 4... Nf6 {[%clk 0:03:00.1]} 5. O-O {[%clk 0:02:48.8]} 5...
Be7 {[%clk 0:03:00.4]} 6. d3 {[%clk 0:02:48.2]} 6... b5 {[%clk 0:03:00.5]} 7.
Bb3 {[%clk 0:02:48.5]} 7... d6 {[%clk 0:03:01]} 8. a4 {[%clk 0:02:48.2]} 8... b4
{[%clk 0:02:57.5]} 9. a5 {[%clk 0:02:47.5]} 9... O-O {[%clk 0:02:57.7]} 10. Nbd2
{[%clk 0:02:47.6]} 10... Rb8 {[%clk 0:02:51.2]} 11. Nc4 {[%clk 0:02:45.4]} 11...
Be6 {[%clk 0:02:45.6]} 12. c3 {[%clk 0:02:44.8]} 12... h6 {[%clk 0:02:26.6]} 13.
h3 {[%clk 0:02:44.2]} 13... Re8 {[%clk 0:02:24.5]} 14. Re1 {[%clk 0:02:43.4]}
14... Bf8 {[%clk 0:02:24.2]} 15. Ba4 {[%clk 0:02:41.6]} 15... Bd7 {[%clk
0:02:23.7]} 16. Ne3 {[%clk 0:02:40.9]} 16... Ne7 {[%clk 0:02:17]} 17. Bb3 {[%clk
0:02:38.3]} 17... c5 {[%clk 0:02:13.4]} 18. Nc4 {[%clk 0:02:22]} 18... Nc6
{[%clk 0:02:09]} 19. Nb6 {[%clk 0:02:17.3]} 19... Nxa5 {[%clk 0:01:49.2]} 20.
Nxd7 {[%clk 0:02:15.7]} 20... Nxd7 {[%clk 0:01:48.7]} 21. Ba4 {[%clk 0:02:02]}
21... Re7 {[%clk 0:01:32.1]} 22. d4 {[%clk 0:02:01.2]} 22... Qc7 {[%clk
0:01:17.6]} 23. Qd3 {[%clk 0:01:47.7]} 23... c4 {[%clk 0:01:12.5]} 24. Qd1
{[%clk 0:01:41.2]} 24... Nc6 {[%clk 0:00:55.3]} 25. d5 {[%clk 0:01:34.2]} 25...
Na5 {[%clk 0:00:42.5]} 26. cxb4 {[%clk 0:01:30.9]} 26... Nb3 {[%clk 0:00:31.9]}
27. Bxb3 {[%clk 0:01:29.8]} 27... cxb3 {[%clk 0:00:32.8]} 28. Qxb3 {[%clk
0:01:28.6]} 28... Qb7 {[%clk 0:00:26.2]} 29. Bd2 {[%clk 0:01:25.9]} 29... Nb6
{[%clk 0:00:20.1]} 30. Qa2 {[%clk 0:01:22.2]} 30... Ra8 {[%clk 0:00:19.1]} 31.
Rec1 {[%clk 0:01:22]} 31... Rc7 {[%clk 0:00:19.5]} 32. Rxc7 {[%clk 0:01:19.8]}
32... Qxc7 {[%clk 0:00:20.4]} 33. Rc1 {[%clk 0:01:19.7]} 33... Qb7 {[%clk
0:00:20.9]} 34. Rc6 {[%clk 0:01:19.1]} 34... Be7 {[%clk 0:00:20.9]} 35. Be3
{[%clk 0:01:15.8]} 35... Nd7 {[%clk 0:00:20.1]} 36. Qa4 {[%clk 0:01:15.1]} 36...
Rc8 {[%clk 0:00:19.8]} 37. Nd2 {[%clk 0:01:13]} 37... Nf8 {[%clk 0:00:18.2]} 38.
Nc4 {[%clk 0:01:11.9]} 38... Rb8 {[%clk 0:00:18.1]} 39. Bd2 {[%clk 0:01:08.7]}
39... Qb5 {[%clk 0:00:17.5]} 40. Qxa6 {[%clk 0:01:07.4]} 40... Qxa6 {[%clk
0:00:17.3]} 41. Rxa6 {[%clk 0:01:06.4]} 41... Nd7 {[%clk 0:00:18.2]} 42. Nxd6
{[%clk 0:01:04.1]} 42... Bxd6 {[%clk 0:00:17.6]} 43. Rxd6 {[%clk 0:01:03.4]}
43... Nf6 {[%clk 0:00:18.5]} 44. f3 {[%clk 0:01:02.1]} 44... Rc8 {[%clk
0:00:18.8]} 45. Rc6 {[%clk 0:01:01.8]} 45... Ra8 {[%clk 0:00:18.8]} 46. b5
{[%clk 0:01:01]} 46... Ra1+ {[%clk 0:00:17.9]} 47. Kh2 {[%clk 0:00:58.9]} 47...
Rd1 {[%clk 0:00:18.4]} 48. Bc3 {[%clk 0:00:57.4]} 48... Nh5 {[%clk 0:00:18.2]}
49. b6 {[%clk 0:00:56.7]} 1-0

[Event "*** Titled Tuesday Blitz"]
[Site "Chess.com"]
[Date "2020.05.26"]
[Round "1"]
[White "CakeinSpace2002"]
[Black "Arek_pacitan"]
[Result "1-0"]
[WhiteElo "2230"]
[BlackElo "2549"]
[TimeControl "180+1"]
[EndTime "10:06:59 PDT"]
[Termination "CakeinSpace2002 won by resignation"]

1. e4 {[%clk 0:02:59.6]} 1... c5 {[%clk 0:02:58.5]} 2. Nf3 {[%clk 0:02:58.1]}
2... g6 {[%clk 0:02:59]} 3. a3 {[%clk 0:02:51.1]} 3... Bg7 {[%clk 0:02:58.2]} 4.
Bc4 {[%clk 0:02:51]} 4... e6 {[%clk 0:02:56.8]} 5. d3 {[%clk 0:02:49.5]} 5... a6
{[%clk 0:02:56.7]} 6. Ba2 {[%clk 0:02:48.4]} 6... Ne7 {[%clk 0:02:56.1]} 7. O-O
{[%clk 0:02:47.2]} 7... O-O {[%clk 0:02:56.5]} 8. Nc3 {[%clk 0:02:46.2]} 8... d5
{[%clk 0:02:56.6]} 9. Bg5 {[%clk 0:02:42.3]} 9... f6 {[%clk 0:02:53.9]} 10. Bh4
{[%clk 0:02:28.2]} 10... Nbc6 {[%clk 0:02:52.8]} 11. Re1 {[%clk 0:02:17.9]}
11... Kh8 {[%clk 0:02:44.3]} 12. Bg3 {[%clk 0:01:55.9]} 12... d4 {[%clk
0:02:40.7]} 13. Ne2 {[%clk 0:01:54.8]} 13... e5 {[%clk 0:02:41.2]} 14. Nd2
{[%clk 0:01:54.7]} 14... g5 {[%clk 0:02:38.7]} 15. h3 {[%clk 0:01:43.2]} 15...
Ng6 {[%clk 0:02:36.7]} 16. Bh2 {[%clk 0:01:39.8]} 16... Qe7 {[%clk 0:02:33.2]}
17. Nf1 {[%clk 0:01:39]} 17... Nf4 {[%clk 0:02:29.2]} 18. Neg3 {[%clk
0:01:35.2]} 18... Bd7 {[%clk 0:02:25.9]} 19. Nf5 {[%clk 0:01:33]} 19... Bxf5
{[%clk 0:02:24.6]} 20. exf5 {[%clk 0:01:33.9]} 20... Qd6 {[%clk 0:02:25.1]} 21.
Ng3 {[%clk 0:01:33.5]} 21... b6 {[%clk 0:02:22.9]} 22. Ne4 {[%clk 0:01:30.4]}
22... Qd7 {[%clk 0:02:22.7]} 23. Bxf4 {[%clk 0:01:30.4]} 23... exf4 {[%clk
0:02:20.2]} 24. Be6 {[%clk 0:01:29.4]} 24... Qc7 {[%clk 0:02:19.9]} 25. Qh5
{[%clk 0:01:26]} 25... Ne5 {[%clk 0:02:18.5]} 26. g3 {[%clk 0:01:18]} 26... fxg3
{[%clk 0:02:07.5]} 27. fxg3 {[%clk 0:01:18.8]} 27... c4 {[%clk 0:02:08.1]} 28.
dxc4 {[%clk 0:01:03.3]} 28... Nxc4 {[%clk 0:02:09]} 29. Bxc4 {[%clk 0:00:58.9]}
29... Qxc4 {[%clk 0:02:06.7]} 30. Qe2 {[%clk 0:00:52]} 30... Qd5 {[%clk
0:02:03.4]} 31. Qf3 {[%clk 0:00:50.2]} 31... Rfe8 {[%clk 0:02:02.1]} 32. Nxg5
{[%clk 0:00:50.1]} 32... Qc5 {[%clk 0:01:42.9]} 33. Ne6 {[%clk 0:00:47.8]} 33...
Qxc2 {[%clk 0:01:29.2]} 34. Rac1 {[%clk 0:00:47.3]} 34... Qxb2 {[%clk
0:01:26.1]} 35. Rc7 {[%clk 0:00:46.7]} 35... Bh6 {[%clk 0:01:13.1]} 36. Qb7
{[%clk 0:00:38.2]} 36... Be3+ {[%clk 0:00:49.2]} 37. Kh1 {[%clk 0:00:33.9]} 1-0

[Event "*** Titled Tuesday Blitz"]
[Site "Chess.com"]
[Date "2020.05.26"]
[Round "1"]
[White "TheBigBadChessDad"]
[Black "velemajstor767276"]
[Result "0-1"]
[WhiteElo "2248"]
[BlackElo "2589"]
[TimeControl "180+1"]
[EndTime "10:07:00 PDT"]
[Termination "velemajstor767276 won on time"]

1. e4 {[%clk 0:02:59.8]} 1... c5 {[%clk 0:02:58]} 2. Nf3 {[%clk 0:03:00.3]} 2...
e6 {[%clk 0:02:57.1]} 3. c3 {[%clk 0:03:00.4]} 3... Nf6 {[%clk 0:02:56.2]} 4. e5
{[%clk 0:03:00.6]} 4... Nd5 {[%clk 0:02:56.8]} 5. d4 {[%clk 0:03:01.4]} 5...
cxd4 {[%clk 0:02:57.7]} 6. cxd4 {[%clk 0:03:01.9]} 6... d6 {[%clk 0:02:57.9]} 7.
exd6 {[%clk 0:03:00.8]} 7... Bxd6 {[%clk 0:02:53.3]} 8. Nc3 {[%clk 0:03:01.7]}
8... Nxc3 {[%clk 0:02:44.4]} 9. bxc3 {[%clk 0:03:00.9]} 9... O-O {[%clk
0:02:22.6]} 10. Bd3 {[%clk 0:03:00.6]} 10... Nd7 {[%clk 0:02:10.3]} 11. O-O
{[%clk 0:02:59.6]} 11... b6 {[%clk 0:02:07.3]} 12. Re1 {[%clk 0:02:58.2]} 12...
Bb7 {[%clk 0:02:06.1]} 13. Bc2 {[%clk 0:02:47.9]} 13... Ba6 {[%clk 0:01:44.6]}
14. Bg5 {[%clk 0:02:44.3]} 14... Qc7 {[%clk 0:01:40.9]} 15. Qd2 {[%clk
0:02:40.2]} 15... Rac8 {[%clk 0:01:38.3]} 16. Rac1 {[%clk 0:02:40.2]} 16... Rfe8
{[%clk 0:01:19.5]} 17. Bb1 {[%clk 0:02:39]} 17... Nf8 {[%clk 0:01:03.6]} 18. Re4
{[%clk 0:02:37.2]} 18... Ng6 {[%clk 0:00:58.1]} 19. h4 {[%clk 0:02:28.8]} 19...
Bb7 {[%clk 0:00:57.8]} 20. h5 {[%clk 0:01:19.3]} 20... Bxe4 {[%clk 0:00:53.2]}
21. Bxe4 {[%clk 0:01:17.8]} 21... Bf4 {[%clk 0:00:47]} 22. Bxf4 {[%clk
0:01:04.6]} 22... Nxf4 {[%clk 0:00:47.9]} 23. h6 {[%clk 0:00:59.2]} 23... g6
{[%clk 0:00:44.8]} 24. g3 {[%clk 0:00:57.4]} 24... Nd5 {[%clk 0:00:42.7]} 25. c4
{[%clk 0:00:38.1]} 25... Nf6 {[%clk 0:00:38.4]} 26. Bd3 {[%clk 0:00:37.1]} 26...
Rcd8 {[%clk 0:00:34.5]} 27. Qg5 {[%clk 0:00:30.2]} 27... Qe7 {[%clk 0:00:34.3]}
28. Qe5 {[%clk 0:00:10.1]} 28... Rd6 {[%clk 0:00:22.9]} 29. Re1 {[%clk
0:00:09.4]} 29... Red8 {[%clk 0:00:20.5]} 30. Bc2 {[%clk 0:00:08.7]} 30... R8d7
{[%clk 0:00:19.1]} 31. d5 {[%clk 0:00:07.3]} 31... Qd8 {[%clk 0:00:19]} 0-1

[Event "*** Titled Tuesday Blitz"]
[Site "Chess.com"]
[Date "2020.05.26"]
[Round "1"]
[White "Ranindu2003"]
[Black "madalin18"]
[Result "1-0"]
[WhiteElo "2518"]
[BlackElo "2149"]
[TimeControl "180+1"]
[EndTime "10:07:00 PDT"]
[Termination "Ranindu2003 won by resignation"]

1. e4 {[%clk 0:03:00.9]} 1... c5 {[%clk 0:02:59.5]} 2. Nf3 {[%clk 0:03:00.3]}
2... d6 {[%clk 0:02:59.9]} 3. d4 {[%clk 0:03:00.1]} 3... cxd4 {[%clk 0:03:00.2]}
4. Nxd4 {[%clk 0:03:01]} 4... Nf6 {[%clk 0:03:00.7]} 5. Nc3 {[%clk 0:03:00.6]}
5... a6 {[%clk 0:03:00.6]} 6. Be3 {[%clk 0:02:56.4]} 6... e5 {[%clk 0:02:59.2]}
7. Nb3 {[%clk 0:02:56]} 7... Be7 {[%clk 0:02:59.2]} 8. f3 {[%clk 0:02:55.6]}
8... Be6 {[%clk 0:02:59.2]} 9. Qd2 {[%clk 0:02:54.4]} 9... O-O {[%clk
0:02:58.4]} 10. O-O-O {[%clk 0:02:53.1]} 10... Nbd7 {[%clk 0:02:52.7]} 11. Kb1
{[%clk 0:02:50.7]} 11... b5 {[%clk 0:02:52.4]} 12. a3 {[%clk 0:02:49.2]} 12...
Rc8 {[%clk 0:02:43.2]} 13. g4 {[%clk 0:02:48.7]} 13... Nb6 {[%clk 0:02:38.9]}
14. g5 {[%clk 0:02:31.6]} 14... Nfd7 {[%clk 0:02:37.9]} 15. Na5 {[%clk
0:02:23.3]} 15... Nc4 {[%clk 0:02:37]} 16. Bxc4 {[%clk 0:02:14.3]} 16... Qxa5
{[%clk 0:02:33.5]} 17. Nd5 {[%clk 0:01:47.2]} 17... Qd8 {[%clk 0:02:10.8]} 18.
Nxe7+ {[%clk 0:01:11.3]} 18... Qxe7 {[%clk 0:02:10.7]} 19. Bxe6 {[%clk
0:01:11.5]} 19... Qxe6 {[%clk 0:01:30.3]} 20. Qxd6 {[%clk 0:01:08.4]} 20... Qxd6
{[%clk 0:01:30.8]} 21. Rxd6 {[%clk 0:01:09.3]} 21... Nc5 {[%clk 0:01:31.4]} 22.
Rd5 {[%clk 0:00:56.9]} 22... Na4 {[%clk 0:01:29.6]} 23. Rxe5 {[%clk 0:00:50.7]}
23... f6 {[%clk 0:01:29.6]} 24. gxf6 {[%clk 0:00:46]} 24... Rxf6 {[%clk
0:01:29.2]} 25. Re7 {[%clk 0:00:45.4]} 25... Rxf3 {[%clk 0:01:26.7]} 26. Bd4
{[%clk 0:00:45.1]} 26... Rf7 {[%clk 0:01:19.7]} 27. Rxf7 {[%clk 0:00:44.6]}
27... Kxf7 {[%clk 0:01:19.7]} 28. Rf1+ {[%clk 0:00:45.2]} 28... Kg8 {[%clk
0:01:13.6]} 29. Rf3 {[%clk 0:00:44.5]} 29... Rc4 {[%clk 0:01:03.4]} 30. c3
{[%clk 0:00:32.4]} 30... Rc8 {[%clk 0:01:02.8]} 31. Rf5 {[%clk 0:00:27.2]} 31...
g6 {[%clk 0:00:56.5]} 32. Rd5 {[%clk 0:00:26.7]} 32... Rf8 {[%clk 0:00:54.7]}
33. b3 {[%clk 0:00:21.4]} 33... Rf1+ {[%clk 0:00:46.4]} 34. Kc2 {[%clk
0:00:21.1]} 34... Rh1 {[%clk 0:00:39.5]} 35. bxa4 {[%clk 0:00:21]} 35... Rxh2+
{[%clk 0:00:39.3]} 36. Kb3 {[%clk 0:00:21.3]} 36... bxa4+ {[%clk 0:00:39.6]} 37.
Kxa4 {[%clk 0:00:22.2]} 37... g5 {[%clk 0:00:40]} 38. Rxg5+ {[%clk 0:00:21.7]}
38... Kf7 {[%clk 0:00:39.5]} 39. Rf5+ {[%clk 0:00:21.7]} 1-0

[Event "*** Titled Tuesday Blitz"]
[Site "Chess.com"]
[Date "2020.05.26"]
[Round "1"]
[White "Blitzking642"]
[Black "bascheyaro"]
[Result "0-1"]
[WhiteElo "2324"]
[BlackElo "2686"]
[TimeControl "180+1"]
[EndTime "10:07:01 PDT"]
[Termination "bascheyaro won by resignation"]

1. d4 {[%clk 0:03:00.9]} 1... Nf6 {[%clk 0:02:36.1]} 2. c4 {[%clk 0:03:00.5]}
2... e6 {[%clk 0:02:36.3]} 3. Nc3 {[%clk 0:03:00.5]} 3... d5 {[%clk 0:02:36.7]}
4. cxd5 {[%clk 0:02:59.7]} 4... exd5 {[%clk 0:02:37]} 5. Bg5 {[%clk 0:02:58.9]}
5... c6 {[%clk 0:02:37.3]} 6. Qc2 {[%clk 0:02:57.6]} 6... Bd6 {[%clk 0:02:35.6]}
7. e3 {[%clk 0:02:55.9]} 7... Bg4 {[%clk 0:02:34.2]} 8. Bd3 {[%clk 0:02:49.9]}
8... Nbd7 {[%clk 0:02:33.8]} 9. Nge2 {[%clk 0:02:47.8]} 9... Bxe2 {[%clk
0:02:33.8]} 10. Qxe2 {[%clk 0:02:40.3]} 10... h6 {[%clk 0:02:32.4]} 11. Bh4
{[%clk 0:02:39]} 11... O-O {[%clk 0:02:32.1]} 12. O-O {[%clk 0:02:34.6]} 12...
Re8 {[%clk 0:02:32.4]} 13. Rab1 {[%clk 0:02:27.6]} 13... a5 {[%clk 0:02:31.8]}
14. Qc2 {[%clk 0:02:24.7]} 14... Nf8 {[%clk 0:02:25.3]} 15. a3 {[%clk
0:02:06.6]} 15... Rc8 {[%clk 0:02:10.7]} 16. b4 {[%clk 0:02:01.6]} 16... axb4
{[%clk 0:02:10.8]} 17. axb4 {[%clk 0:02:02.5]} 17... b5 {[%clk 0:02:11.3]} 18.
Bf5 {[%clk 0:01:48]} 18... Rc7 {[%clk 0:02:08.7]} 19. Rfc1 {[%clk 0:01:38.7]}
19... Qe7 {[%clk 0:02:02.6]} 20. Bg3 {[%clk 0:01:26.1]} 20... Bxg3 {[%clk
0:01:44.4]} 21. hxg3 {[%clk 0:01:27]} 21... Ra7 {[%clk 0:01:44.4]} 22. Ne2
{[%clk 0:01:24.5]} 22... Ra6 {[%clk 0:01:44.6]} 23. Nf4 {[%clk 0:01:21.9]} 23...
Rea8 {[%clk 0:01:42.9]} 24. Nd3 {[%clk 0:01:20.3]} 24... g6 {[%clk 0:01:40.7]}
25. Bh3 {[%clk 0:01:19]} 25... Ne4 {[%clk 0:01:37.6]} 26. Ne5 {[%clk 0:01:09.8]}
26... Qf6 {[%clk 0:01:31.7]} 27. Rb2 {[%clk 0:01:02.2]} 27... Ra1 {[%clk
0:01:23.4]} 28. Ng4 {[%clk 0:00:27.7]} 28... Qd6 {[%clk 0:01:15.8]} 29. Nxh6+
{[%clk 0:00:24.8]} 29... Kg7 {[%clk 0:01:15.8]} 30. Ng4 {[%clk 0:00:24.2]} 30...
f6 {[%clk 0:01:15.2]} 31. f3 {[%clk 0:00:18]} 31... Nxg3 {[%clk 0:01:14.9]} 32.
Kf2 {[%clk 0:00:17.7]} 32... Nf5 {[%clk 0:01:13.2]} 33. f4 {[%clk 0:00:15.3]}
33... Nxd4 {[%clk 0:01:08.7]} 34. Qd1 {[%clk 0:00:09.2]} 34... Rxc1 {[%clk
0:01:07.1]} 35. Qxc1 {[%clk 0:00:09.3]} 35... Nf5 {[%clk 0:01:06.6]} 36. Rc2
{[%clk 0:00:09.6]} 36... Ra6 {[%clk 0:01:03.4]} 37. Rc5 {[%clk 0:00:08.5]} 37...
Ne6 {[%clk 0:01:03]} 38. Nxf6 {[%clk 0:00:06.4]} 38... Kxf6 {[%clk 0:01:00.8]}
39. Bxf5 {[%clk 0:00:04.5]} 39... gxf5 {[%clk 0:00:48.3]} 40. Qb2+ {[%clk
0:00:04.8]} 40... d4 {[%clk 0:00:48.3]} 41. exd4 {[%clk 0:00:04.4]} 41... Qxd4+
{[%clk 0:00:46.9]} 42. Qxd4+ {[%clk 0:00:04.1]} 42... Nxd4 {[%clk 0:00:47.8]}
43. Re5 {[%clk 0:00:04.2]} 43... Ne6 {[%clk 0:00:47.4]} 44. Re3 {[%clk
0:00:03.7]} 44... Nxf4 {[%clk 0:00:47]} 0-1

[Event "*** Titled Tuesday Blitz"]
[Site "Chess.com"]
[Date "2020.05.26"]
[Round "1"]
[White "chessablanca"]
[Black "VojtechPlat"]
[Result "0-1"]
[WhiteElo "2428"]
[BlackElo "2891"]
[TimeControl "180+1"]
[EndTime "10:07:02 PDT"]
[Termination "VojtechPlat won by resignation"]

1. g3 {[%clk 0:03:00.9]} 1... e5 {[%clk 0:02:57.8]} 2. Bg2 {[%clk 0:03:00.7]}
2... d6 {[%clk 0:02:57.9]} 3. c4 {[%clk 0:03:00.8]} 3... Nf6 {[%clk 0:02:57.5]}
4. Nc3 {[%clk 0:03:00.9]} 4... c6 {[%clk 0:02:57.7]} 5. d3 {[%clk 0:02:53.5]}
5... Be7 {[%clk 0:02:57]} 6. Nf3 {[%clk 0:02:53.4]} 6... O-O {[%clk 0:02:56.8]}
7. O-O {[%clk 0:02:53.5]} 7... Re8 {[%clk 0:02:56.8]} 8. Qc2 {[%clk 0:02:44.2]}
8... a5 {[%clk 0:02:56.2]} 9. Rd1 {[%clk 0:02:40.5]} 9... Qc7 {[%clk 0:02:56]}
10. d4 {[%clk 0:02:39.5]} 10... Nbd7 {[%clk 0:02:55]} 11. b3 {[%clk 0:02:30.8]}
11... Bf8 {[%clk 0:02:54.5]} 12. Bb2 {[%clk 0:02:29.7]} 12... g6 {[%clk
0:02:54]} 13. Rac1 {[%clk 0:02:26.2]} 13... Bg7 {[%clk 0:02:53.7]} 14. e3 {[%clk
0:02:19.7]} 14... Nf8 {[%clk 0:02:51.4]} 15. d5 {[%clk 0:02:18]} 15... Bd7
{[%clk 0:02:22.4]} 16. Qd2 {[%clk 0:02:13]} 16... c5 {[%clk 0:02:15.5]} 17. e4
{[%clk 0:01:51.7]} 17... Nh5 {[%clk 0:02:14.4]} 18. Qe2 {[%clk 0:01:47.7]} 18...
Qd8 {[%clk 0:02:13.2]} 19. Rc2 {[%clk 0:01:40.6]} 19... f5 {[%clk 0:02:11]} 20.
Bc1 {[%clk 0:01:23.8]} 20... f4 {[%clk 0:02:07.8]} 21. Ne1 {[%clk 0:01:17.9]}
21... fxg3 {[%clk 0:01:38.5]} 22. fxg3 {[%clk 0:01:11.1]} 22... Nf6 {[%clk
0:01:38.3]} 23. Bg5 {[%clk 0:01:07.6]} 23... h6 {[%clk 0:01:37.8]} 24. Bxf6
{[%clk 0:01:07.3]} 24... Bxf6 {[%clk 0:01:37.8]} 25. Nf3 {[%clk 0:01:06.3]}
25... Nh7 {[%clk 0:01:37.7]} 26. Rf1 {[%clk 0:01:05]} 26... Kg7 {[%clk
0:01:37.6]} 27. h3 {[%clk 0:01:02.5]} 27... Qe7 {[%clk 0:01:35.9]} 28. Kh2
{[%clk 0:01:00.7]} 28... Rf8 {[%clk 0:01:35.6]} 29. Nd1 {[%clk 0:00:59.3]} 29...
a4 {[%clk 0:01:33.5]} 30. Ne3 {[%clk 0:00:57.4]} 30... axb3 {[%clk 0:01:33.2]}
31. axb3 {[%clk 0:00:58.3]} 31... Ra3 {[%clk 0:01:32.1]} 32. Rb2 {[%clk
0:00:57.8]} 32... Rfa8 {[%clk 0:01:27.5]} 33. Nc2 {[%clk 0:00:54.8]} 33... Ra2
{[%clk 0:01:26.7]} 34. Rfb1 {[%clk 0:00:55.3]} 34... Rxb2 {[%clk 0:01:26.3]} 35.
Rxb2 {[%clk 0:00:56.2]} 35... Qd8 {[%clk 0:01:23.8]} 36. b4 {[%clk 0:00:55.8]}
36... Qb6 {[%clk 0:01:19.6]} 37. Qd2 {[%clk 0:00:44]} 37... h5 {[%clk
0:00:55.6]} 38. Ne3 {[%clk 0:00:40.9]} 38... cxb4 {[%clk 0:00:50.9]} 39. Rxb4
{[%clk 0:00:40.7]} 39... Qc7 {[%clk 0:00:49.4]} 40. Qb2 {[%clk 0:00:39.1]} 40...
Ra7 {[%clk 0:00:48.4]} 41. Nd1 {[%clk 0:00:34.5]} 41... Nf8 {[%clk 0:00:47.5]}
42. Nc3 {[%clk 0:00:33.9]} 42... g5 {[%clk 0:00:41.9]} 43. h4 {[%clk 0:00:31.2]}
43... g4 {[%clk 0:00:41.4]} 44. Ne1 {[%clk 0:00:29.5]} 44... Qc5 {[%clk
0:00:38.4]} 45. Nd3 {[%clk 0:00:23.6]} 45... Qd4 {[%clk 0:00:37.2]} 46. Qe2
{[%clk 0:00:24]} 46... Qxc3 {[%clk 0:00:36.4]} 47. Qe3 {[%clk 0:00:24.1]} 47...
Ra3 {[%clk 0:00:34.1]} 48. Rxb7 {[%clk 0:00:21.4]} 48... Qxd3 {[%clk 0:00:34]}
0-1

[Event "*** Titled Tuesday Blitz"]
[Site "Chess.com"]
[Date "2020.05.26"]
[Round "1"]
[White "PauloFanha"]
[Black "Barmen_EV"]
[Result "0-1"]
[WhiteElo "1980"]
[BlackElo "2473"]
[TimeControl "180+1"]
[EndTime "10:07:03 PDT"]
[Termination "Barmen_EV won by resignation"]

1. e4 {[%clk 0:03:00.3]} 1... c5 {[%clk 0:02:50.8]} 2. Nf3 {[%clk 0:02:59.3]}
2... Nc6 {[%clk 0:02:51.7]} 3. Bb5 {[%clk 0:02:58.5]} 3... e6 {[%clk 0:02:51.2]}
4. Bxc6 {[%clk 0:02:57]} 4... bxc6 {[%clk 0:02:52.1]} 5. e5 {[%clk 0:02:54.1]}
5... Ne7 {[%clk 0:02:53]} 6. c3 {[%clk 0:02:51.6]} 6... Ng6 {[%clk 0:02:53.9]}
7. d4 {[%clk 0:02:50.2]} 7... Be7 {[%clk 0:02:53.7]} 8. O-O {[%clk 0:02:48.4]}
8... O-O {[%clk 0:02:54.6]} 9. Be3 {[%clk 0:02:45.4]} 9... f6 {[%clk 0:02:53.5]}
10. exf6 {[%clk 0:02:41.2]} 10... gxf6 {[%clk 0:02:54.4]} 11. dxc5 {[%clk
0:02:40.2]} 11... Ba6 {[%clk 0:02:51.2]} 12. Re1 {[%clk 0:02:37.8]} 12... f5
{[%clk 0:02:49.8]} 13. b4 {[%clk 0:02:23.5]} 13... Bc4 {[%clk 0:02:49]} 14. Nbd2
{[%clk 0:02:21]} 14... Bd5 {[%clk 0:02:49.2]} 15. c4 {[%clk 0:02:15.9]} 15... f4
{[%clk 0:02:49.1]} 16. cxd5 {[%clk 0:02:09.6]} 16... fxe3 {[%clk 0:02:47.5]} 17.
Rxe3 {[%clk 0:02:07.4]} 17... cxd5 {[%clk 0:02:43]} 18. Rb1 {[%clk 0:01:55.9]}
18... a5 {[%clk 0:02:33.2]} 19. a3 {[%clk 0:01:52.2]} 19... axb4 {[%clk
0:02:34.1]} 20. axb4 {[%clk 0:01:50.8]} 20... Bf6 {[%clk 0:02:31.6]} 21. Nb3
{[%clk 0:01:46.5]} 21... Ra2 {[%clk 0:02:21.6]} 22. Re2 {[%clk 0:01:38.9]} 22...
Qa8 {[%clk 0:02:18.3]} 23. Nbd4 {[%clk 0:01:36.3]} 23... Nf4 {[%clk 0:02:13]}
24. Rxa2 {[%clk 0:01:31.6]} 24... Qxa2 {[%clk 0:02:13.9]} 25. g3 {[%clk
0:01:25.6]} 25... Nh3+ {[%clk 0:02:09.2]} 26. Kg2 {[%clk 0:01:24]} 26... Nxf2
{[%clk 0:02:06.1]} 27. Qc2 {[%clk 0:01:06.3]} 27... Qxc2 {[%clk 0:01:54.7]} 28.
Nxc2 {[%clk 0:01:06.3]} 28... Nd3 {[%clk 0:01:53.4]} 29. Ncd4 {[%clk 0:00:58.1]}
29... Rb8 {[%clk 0:01:46.5]} 30. Kf1 {[%clk 0:00:53.6]} 30... Nxc5 {[%clk
0:01:45.3]} 31. Rc1 {[%clk 0:00:48.8]} 31... Rxb4 {[%clk 0:01:36.4]} 32. Rxc5
{[%clk 0:00:46.7]} 32... Bxd4 {[%clk 0:01:36.6]} 33. Nxd4 {[%clk 0:00:46.9]}
33... Rxd4 {[%clk 0:01:37.5]} 34. Rc7 {[%clk 0:00:46.4]} 34... d6 {[%clk
0:01:25.9]} 35. Rd7 {[%clk 0:00:42.1]} 35... Re4 {[%clk 0:01:25.7]} 36. Rxd6
{[%clk 0:00:40.6]} 36... Kf7 {[%clk 0:01:26.6]} 37. Rd7+ {[%clk 0:00:39.1]}
37... Kg6 {[%clk 0:01:26.4]} 38. Kf2 {[%clk 0:00:39.5]} 38... d4 {[%clk
0:01:25.2]} 39. h4 {[%clk 0:00:32.4]} 39... h5 {[%clk 0:01:22.2]} 40. Kf3 {[%clk
0:00:29.8]} 40... Re3+ {[%clk 0:01:20.2]} 41. Kf2 {[%clk 0:00:26.1]} 41... e5
{[%clk 0:01:21.1]} 42. Rd6+ {[%clk 0:00:19.6]} 42... Kf5 {[%clk 0:01:21.3]} 43.
Rd8 {[%clk 0:00:19.9]} 43... Ra3 {[%clk 0:01:19.9]} 44. Rf8+ {[%clk 0:00:18.2]}
44... Ke4 {[%clk 0:01:19.6]} 45. Kg2 {[%clk 0:00:17.3]} 45... Ra2+ {[%clk
0:01:20.5]} 46. Kh3 {[%clk 0:00:16.8]} 46... d3 {[%clk 0:01:21.4]} 47. Rf1
{[%clk 0:00:15.7]} 47... d2 {[%clk 0:01:20]} 48. g4 {[%clk 0:00:16.1]} 48...
Ra3+ {[%clk 0:01:19.1]} 49. Kg2 {[%clk 0:00:14.9]} 49... hxg4 {[%clk 0:01:20]}
50. h5 {[%clk 0:00:13.9]} 50... Rh3 {[%clk 0:01:20.2]} 51. Rd1 {[%clk
0:00:11.4]} 51... Kd3 {[%clk 0:01:20.5]} 52. h6 {[%clk 0:00:09.4]} 52... Rxh6
{[%clk 0:01:19.2]} 53. Kg3 {[%clk 0:00:09.9]} 53... Ke2 {[%clk 0:01:18.7]} 54.
Rxd2+ {[%clk 0:00:08.9]} 54... Kxd2 {[%clk 0:01:19.6]} 55. Kxg4 {[%clk
0:00:08.8]} 55... e4 {[%clk 0:01:20.3]} 0-1